{"text_format":"1","workbook":"xlsx","n_sheets":7,"sheets":["Aluno","Grupo 1","Grupo 2","Grupo 3","Validação","Relatório","Tipos"],"not_rendered":{"charts":0,"images":0,"macros":1,"external_links":0,"defined_names":1,"comments":0,"pivot_tables":0},"unopened":[],"bounds":{"document_bytes":16777216,"sheet_cells":100000,"rows_first":2000,"rows_last":500,"rows_between":2000,"halvings":0,"cell_chars":16384,"cell_head_chars":4096},"cells_cut":0,"cells_raw":0,"read":"whole","date_system":"1900"}

{"sheet":"Aluno","index":0,"n_rows":5,"n_cols":2,"rows_kept":5,"cut":false,"hidden":false,"merged":[[0,0,0,1],[1,0,1,1]]}
["RELATÓRIO DE ATIVIDADES COMPLEMENTARES"]
["INSTRUÇÕES DE PREENCHIMENTO\n1) Informe nesta seus dados pessoais e a data de solicitação nesta aba\n2) Preencha as atividades realizadas nas abas Grupo 1, 2 e 3\n3) Salve o arquivo e envie ao Professor Responsável pelas Atividades Complementares, juntamente com a documentação comprobatória\n4) As abas \"Validação\" e \"Relatório\" não precisam ser preenchidas pelo aluno. Elas serão preenchidas pelo Professor Responsável pelas Atividades Complementares"]
["Informe seu RA:","1582063"]
["Informe seu Nome:","Carla Cunha dos Reis"]
["Data de Solicitação:","2018-06-04"]

{"sheet":"Grupo 1","index":1,"n_rows":31,"n_cols":4,"rows_kept":31,"cut":false,"hidden":false,"merged":[[0,0,0,3],[1,0,1,3]]}
["GRUPO 1 – ATIVIDADES DE COMPLEMENTAÇÃO DA FORMAÇÃO SOCIAL, HUMANA E CULTURAL"]
["INSTRUÇÕES DE PREENCHIMENTO\nPara cada atividade a ser registrada:\n  1) Informar o código da classificação da atividade, conforme a tabela de pontuação de Atividades Complementares (Para o Grupo 1, informar Códigos 1 a 5)\n  2) A própria planilha preencherá a classificação da atividade\n  3) Apresente uma breve descrição para sua atividade, de acordo com a documentação comprobatória apresentada\n  4) Preencha a pontuação total que você gostaria de solicitar pela atividade, com base na pontuação do regulamento"]
["COD. CLASS.","CLASSIFICAÇÃO DA ATIVIDADE","DESCRIÇÃO DA ATIVIDADE","PONTUAÇÃO"]
[1,{"$f":"IF(ISBLANK(A4),\"\",VLOOKUP(A4,Tipos,3))","v":"Atividade esportiva – participação em atividades esportivas"},"Treino de Judô entre o 1º Semestre de 2015 e o 2º Semestre de 2017",10]
[2,"Curso de língua estrangeira – participação com aproveitamento em cursos de línguas","Curso de Inglês, com comprovação total de 100 horas",10]
[3,"Participação em atividades artísticas e culturais","Aulas de violão entre o 1º Semestre de 2017 e o 1º Semestre de 2018",10]
[5,"Participação como expositor em exposição artística ou cultural","Apresentação de foto no concurso de Fotografia da UTFPR",5]
[null,""]
[null,""]
[null,""]
[null,""]
[null,""]
[null,""]
[null,""]
[null,""]
[null,""]
[null,""]
[null,""]
[null,""]
[null,""]
[null,""]
[null,""]
[null,""]
[null,""]
[null,""]
[null,""]
[null,""]
[null,""]
[null,""]
[null,""]
[null,""]

{"sheet":"Grupo 2","index":2,"n_rows":31,"n_cols":4,"rows_kept":31,"cut":false,"hidden":false,"merged":[[0,0,0,3],[1,0,1,3]]}
["GRUPO 2 – ATIVIDADES DE CUNHO COMUNITÁRIO E DE INTERESSE COLETIVO"]
["INSTRUÇÕES DE PREENCHIMENTO\nPara cada atividade a ser registrada:\n  1) Informar o código da classificação da atividade, conforme a tabela de pontuação de Atividades Complementares (Para o Grupo 2, informar Códigos 6 a 11)\n  2) A própria planilha preencherá a classificação da atividade\n  3) Apresente uma breve descrição para sua atividade, de acordo com a documentação comprobatória apresentada\n  4) Preencha a pontuação total que você gostaria de solicitar pela atividade, com base na pontuação do regulamento"]
["COD. CLASS.","CLASSIFICAÇÃO DA ATIVIDADE","DESCRIÇÃO DA ATIVIDADE","PONTUAÇÃO"]
[7,{"$f":"IF(ISBLANK(A4),\"\",VLOOKUP(A4,Tipos,3))","v":"Participação efetiva em trabalho voluntário, atividades comunitárias, membro de comissão interna como CIPAS, associações de bairros e escolares, brigadas de incêndio"},"Atividades voluntárias para coleta de alimentos",5]
[10,"Engajamento como docente não remunerado em cursos preparatórios e de reforço escolar","Atuação como professor no curso de introdução ao cálculo",10]
[11,"Participação em projetos de extensão, não remunerados e de interesse social","Projeto de extensão para plantio de árvores no entorno da universidade",5]
[12,"Atuação como Monitor Voluntário de disciplina em cursos de graduação","Monitoria voluntária (sem bolsa) na disciplina Pesquisa Operacional 1",5]
[null,""]
[null,""]
[null,""]
[null,""]
[null,""]
[null,""]
[null,""]
[null,""]
[null,""]
[null,""]
[null,""]
[null,""]
[null,""]
[null,""]
[null,""]
[null,""]
[null,""]
[null,""]
[null,""]
[null,""]
[null,""]
[null,""]
[null,""]
[null,""]

{"sheet":"Grupo 3","index":3,"n_rows":31,"n_cols":4,"rows_kept":31,"cut":false,"hidden":false,"merged":[[0,0,0,3],[1,0,1,3]]}
["GRUPO 3 – ATVIDADES DE INICIAÇÃO CIENTÍFICA, TECNOLÓGICA E DE FORMAÇÃO PROFISSIONAL"]
["INSTRUÇÕES DE PREENCHIMENTO\nPara cada atividade a ser registrada:\n  1) Informar o código da classificação da atividade, conforme a tabela de pontuação de Atividades Complementares (Para o Grupo 3, informar Códigos 12 a 27)\n  2) A própria planilha preencherá a classificação da atividade\n  3) Apresente uma breve descrição para sua atividade, de acordo com a documentação comprobatória apresentada\n  4) Preencha a pontuação total que você gostaria de solicitar pela atividade, com base na pontuação do regulamento"]
["COD. CLASS.","CLASSIFICAÇÃO DA ATIVIDADE","DESCRIÇÃO DA ATIVIDADE","PONTUAÇÃO"]
[14,{"$f":"IF(ISBLANK(A4),\"\",VLOOKUP(A4,Tipos,3))","v":"Participação em palestras, congressos e seminários técnico-científico"},"Participação nas palestras da Semana Acadêmica de 2018",2]
[16,"Participação em projetos de iniciação científica e tecnológica, relacionados com o objetivo do curso","Iniciação científica realizada no ano de 2016",10]
[21,"Estágio não obrigatório na área do curso","Estágio realizado na Bemis entre Janeiro de 2017 e Julho de 2017",15]
[24,"Estágio acadêmico na UTFPR ou monitoria de disciplinas","Monitoria com bolsa na disciplina Probabilidade e Estatística",5]
[null,""]
[null,""]
[null,""]
[null,""]
[null,""]
[null,""]
[null,""]
[null,""]
[null,""]
[null,""]
[null,""]
[null,""]
[null,""]
[null,""]
[null,""]
[null,""]
[null,""]
[null,""]
[null,""]
[null,""]
[null,""]
[null,""]
[null,""]
[null,""]

{"sheet":"Validação","index":4,"n_rows":15,"n_cols":5,"rows_kept":15,"cut":false,"hidden":false,"merged":[[0,0,0,4],[1,0,1,4]]}
["VALIDAÇÃO DAS ATIVIDADES COMPLEMENTARES"]
["INSTRUÇÕES DE PREENCHIMENTO\nEsta planilha será preenchida pelo Professor Responsável pelas Atividades Complementares\n1) Clicar no botão \"Gerar Planilha de Validação\"\n2) Verificar a documentação e informar a pontuação que o aluno receberá por cada atividade\n3) Após validar a pontuação, clicar em \"Gerar Relatório Final\""]
["GRUPO","COD CLASS.","DESCRIÇÃO DA ATIVIDADE","PONTUAÇÃO SOLICITADA","PONTUAÇÃO APROVADA"]
[1,1,"Treino de Judô entre o 1º Semestre de 2015 e o 2º Semestre de 2017",10,8]
[1,2,"Curso de Inglês, com comprovação total de 100 horas",10,10]
[1,3,"Aulas de violão entre o 1º Semestre de 2017 e o 1º Semestre de 2018",10,7]
[1,5,"Apresentação de foto no concurso de Fotografia da UTFPR",5,5]
[2,7,"Atividades voluntárias para coleta de alimentos",5,5]
[2,10,"Atuação como professor no curso de introdução ao cálculo",10,10]
[2,11,"Projeto de extensão para plantio de árvores no entorno da universidade",5,5]
[2,12,"Monitoria voluntária (sem bolsa) na disciplina Pesquisa Operacional 1",5,5]
[3,14,"Participação nas palestras da Semana Acadêmica de 2018",2,2]
[3,16,"Iniciação científica realizada no ano de 2016",10,10]
[3,21,"Estágio realizado na Bemis entre Janeiro de 2017 e Julho de 2017",15,12]
[3,24,"Monitoria com bolsa na disciplina Probabilidade e Estatística",5,5]

{"sheet":"Relatório","index":5,"n_rows":39,"n_cols":4,"rows_kept":39,"cut":false,"hidden":false,"merged":[[11,0,11,1],[0,0,0,3],[1,0,1,3],[3,0,3,1],[4,0,4,1],[5,0,5,1]]}
["ATIVIDADES COMPLEMENTARES"]
["Relatório Final de Avaliação"]
[]
["RA do Aluno:",null,"1582063"]
["Nome do Aluno:",null,"Carla Cunha dos Reis"]
["Data de Aprovação:",null,"2019-04-01"]
[]
["Resumo da Pontuação",null,"Grupo 1 - 30 pontos"]
[null,null,"Grupo 2 - 25 pontos"]
[null,null,"Grupo 3 - 29 pontos"]
["Pontuação Final:",null,"84 pontos"]
["Resultado Final:",null,"APROVADO"]
[]
["GRUPO","COD. CLASS.","DESCRIÇÃO DA ATIVIDADE","PONTUAÇÃO"]
[1,1,"Treino de Judô entre o 1º Semestre de 2015 e o 2º Semestre de 2017",8]
[1,2,"Curso de Inglês, com comprovação total de 100 horas",10]
[1,3,"Aulas de violão entre o 1º Semestre de 2017 e o 1º Semestre de 2018",7]
[1,5,"Apresentação de foto no concurso de Fotografia da UTFPR",5]
[2,7,"Atividades voluntárias para coleta de alimentos",5]
[2,10,"Atuação como professor no curso de introdução ao cálculo",10]
[2,11,"Projeto de extensão para plantio de árvores no entorno da universidade",5]
[2,12,"Monitoria voluntária (sem bolsa) na disciplina Pesquisa Operacional 1",5]
[3,14,"Participação nas palestras da Semana Acadêmica de 2018",2]
[3,16,"Iniciação científica realizada no ano de 2016",10]
[3,21,"Estágio realizado na Bemis entre Janeiro de 2017 e Julho de 2017",12]
[3,24,"Monitoria com bolsa na disciplina Probabilidade e Estatística",5]
[]
[]
[]
[null,null,"Carla Cunha dos Reis"]
[null,null,"Aluno do Curso"]
[]
[]
[null,null,"Profa. Ms. Andrea Maria Baroneza"]
[null,null,"Responsável pelas Atividades Complementares"]
[]
[]
[null,null,"Prof. Dr. Rafael Henrique Palma Lima"]
[null,null,"Coordenador do Curso"]

{"sheet":"Tipos","index":6,"n_rows":30,"n_cols":7,"rows_kept":30,"cut":false,"hidden":true,"merged":[]}
[]
[null,"TIPO","GRUPO","DESCRIÇÃO","MÁXIMO",null,"Profa. Ms. Andrea Maria Baroneza"]
[null,1,1,"Atividade esportiva – participação em atividades esportivas",10,null,"Responsável pelas Atividades Complementares"]
[null,2,1,"Curso de língua estrangeira – participação com aproveitamento em cursos de línguas",10,null,"Prof. Dr. Rafael Henrique Palma Lima"]
[null,3,1,"Participação em atividades artísticas e culturais",10,null,"Coordenador do Curso"]
[null,4,1,"Participação efetiva na organização de exposições e seminários de caráter artístico ou cultural",10]
[null,5,1,"Participação como expositor em exposição artística ou cultural",10]
[null,6,2,"Participação efetiva em Diretórios e Centros Acadêmicos (membro de C.A/DCE), Representante de alunos para conselho universitário ou outro conselho da instituição, Membro de Entidades de Classe representante de alunos (UNE), Membro de Colegiado",10]
[null,7,2,"Participação efetiva em trabalho voluntário, atividades comunitárias, membro de comissão interna como CIPAS, associações de bairros e escolares, brigadas de incêndio",10]
[null,8,2,"Participação em atividades beneficentes",10]
[null,9,2,"Atuação como instrutor em palestras técnicas, em seminários, em cursos da área específica, desde que não remunerados e de interesse da sociedade",10]
[null,10,2,"Engajamento como docente não remunerado em cursos preparatórios e de reforço escolar",10]
[null,11,2,"Participação em projetos de extensão, não remunerados e de interesse social",20]
[null,12,2,"Atuação como Monitor Voluntário de disciplina em cursos de graduação",10]
[null,13,3,"Participação em cursos extraordinários da sua área de formação, de fundamento científico ou de gestão",10]
[null,14,3,"Participação em palestras, congressos e seminários técnico-científico",10]
[null,15,3,"Participação como apresentador de trabalhos em palestras, congressos e seminários técnico-científicos",10]
[null,16,3,"Participação em projetos de iniciação científica e tecnológica, relacionados com o objetivo do curso",20]
[null,17,3,"Participação como expositor em exposições técnico-científico",10]
[null,18,3,"Participação efetiva na organização de exposições e seminários de caráter acadêmico",10]
[null,19,3,"Publicação em periódicos",40]
[null,20,3,"Publicações em anais de eventos técnico-científicos",20]
[null,21,3,"Estágio não obrigatório na área do curso",15]
[null,22,3,"Trabalho com vínculo empregatício, desde que na área do curso",15]
[null,23,3,"Trabalho como empreendedor na área do curso",15]
[null,24,3,"Estágio acadêmico na UTFPR ou monitoria de disciplinas",10]
[null,25,3,"Participação em visitas técnicas organizadas pela UTFPR",10]
[null,26,3,"Participação e aprovação em disciplinas/unidades curriculares de enriquecimento curricular",10]
[null,27,3,"Participação em Empresa Júnior, Hotel Tecnológico, Incubadora Tecnológica",20]
[null,28,3,"Participação em projetos multidisciplinares ou interdisciplinares",20]